[Event "*** Titled Tuesday Blitz"]
[Site "Chess.com"]
[Date "2021.04.06"]
[Round "3"]
[White "Majesth"]
[Black "dosto07"]
[Result "0-1"]
[WhiteElo "2448"]
[BlackElo "2245"]
[TimeControl "180+1"]
[EndTime "10:28:37 PDT"]
[Termination "dosto07 won by resignation"]

1. d4 {[%clk 0:03:00.9]} 1... d5 {[%clk 0:02:58.3]} 2. Bg5 {[%clk 0:03:00]} 2...
h6 {[%clk 0:02:57.4]} 3. Bh4 {[%clk 0:02:59.8]} 3... c6 {[%clk 0:02:57]} 4. Nf3
{[%clk 0:02:59.4]} 4... Bf5 {[%clk 0:02:53.4]} 5. e3 {[%clk 0:02:58.3]} 5... Qb6
{[%clk 0:02:52.7]} 6. Qc1 {[%clk 0:02:57.9]} 6... Nd7 {[%clk 0:02:51.9]} 7. c4
{[%clk 0:02:57.7]} 7... dxc4 {[%clk 0:02:51.1]} 8. Bxc4 {[%clk 0:02:55]} 8...
Ngf6 {[%clk 0:02:47.9]} 9. Nc3 {[%clk 0:02:53.7]} 9... e6 {[%clk 0:02:47.5]} 10.
O-O {[%clk 0:02:52.3]} 10... Be7 {[%clk 0:02:41.2]} 11. Ne5 {[%clk 0:02:47.3]}
11... Rd8 {[%clk 0:02:12.8]} 12. f4 {[%clk 0:02:43.6]} 12... O-O {[%clk
0:02:09.7]} 13. Kh1 {[%clk 0:02:00.3]} 13... Rfe8 {[%clk 0:02:07.3]} 14. a4
{[%clk 0:01:52.2]} 14... c5 {[%clk 0:02:05.1]} 15. a5 {[%clk 0:01:49.5]} 15...
Qc7 {[%clk 0:01:56.6]} 16. Bb5 {[%clk 0:01:34.6]} 16... a6 {[%clk 0:01:51]} 17.
Bxf6 {[%clk 0:01:24.5]} 17... axb5 {[%clk 0:01:25.3]} 18. Nxb5 {[%clk
0:01:25.4]} 18... Qb8 {[%clk 0:01:18.5]} 19. Bxe7 {[%clk 0:01:23.8]} 19... Rxe7
{[%clk 0:01:16.9]} 20. Nxd7 {[%clk 0:01:24.2]} 20... Rexd7 {[%clk 0:01:13.7]}
21. Qxc5 {[%clk 0:01:21.3]} 21... Bd3 {[%clk 0:01:09.6]} 22. Rfd1 {[%clk
0:01:17.3]} 22... Rd5 {[%clk 0:01:09.1]} 23. Qb4 {[%clk 0:00:50.3]} 23... Bxb5
{[%clk 0:00:51.4]} 24. e4 {[%clk 0:00:50.2]} 24... Rh5 {[%clk 0:00:48]} 25. g4
{[%clk 0:00:37]} 25... Qxf4 {[%clk 0:00:32]} 26. gxh5 {[%clk 0:00:36.9]} 26...
Be2 {[%clk 0:00:26.2]} 27. Qd2 {[%clk 0:00:26.8]} 27... Qxe4+ {[%clk 0:00:25.7]}
28. Kg1 {[%clk 0:00:26.5]} 28... Bxd1 {[%clk 0:00:25]} 29. Rxd1 {[%clk
0:00:27.4]} 29... Rd5 {[%clk 0:00:24.9]} 30. Qd3 {[%clk 0:00:10]} 30... Rg5+
{[%clk 0:00:23.1]} 31. Kf2 {[%clk 0:00:10.4]} 31... Qg2+ {[%clk 0:00:20.2]} 32.
Ke1 {[%clk 0:00:10.4]} 32... Qxh2 {[%clk 0:00:18.4]} 33. Qe2 {[%clk 0:00:04.4]}
33... Rg1+ {[%clk 0:00:18.5]} 34. Kd2 {[%clk 0:00:04.4]} 34... Rg2 {[%clk
0:00:17.2]} 35. Re1 {[%clk 0:00:05.3]} 35... Rxe2+ {[%clk 0:00:16.8]} 36. Rxe2
{[%clk 0:00:06.2]} 36... Qxh5 {[%clk 0:00:16.9]} 0-1

[Event "*** Titled Tuesday Blitz"]
[Site "Chess.com"]
[Date "2021.04.06"]
[Round "3"]
[White "ApacheSVD"]
[Black "Korchmar_Vasiliy"]
[Result "0-1"]
[WhiteElo "2429"]
[BlackElo "2664"]
[TimeControl "180+1"]
[EndTime "10:28:38 PDT"]
[Termination "Korchmar_Vasiliy won on time"]

1. e4 {[%clk 0:03:00.9]} 1... c5 {[%clk 0:02:59.9]} 2. Nf3 {[%clk 0:02:59.8]}
2... d6 {[%clk 0:03:00.3]} 3. d4 {[%clk 0:03:00.5]} 3... cxd4 {[%clk 0:03:01.2]}
4. Nxd4 {[%clk 0:03:01.1]} 4... Nf6 {[%clk 0:03:01.8]} 5. Nc3 {[%clk 0:03:01.8]}
5... Nc6 {[%clk 0:03:02.1]} 6. Bg5 {[%clk 0:03:01.3]} 6... e6 {[%clk 0:03:02.3]}
7. f4 {[%clk 0:03:00.9]} 7... Be7 {[%clk 0:02:59.2]} 8. Qd2 {[%clk 0:03:00]}
8... h6 {[%clk 0:02:58.7]} 9. Bxf6 {[%clk 0:02:56.7]} 9... Bxf6 {[%clk
0:02:59.6]} 10. Nf3 {[%clk 0:02:47.6]} 10... g5 {[%clk 0:02:50.9]} 11. O-O-O
{[%clk 0:02:01.2]} 11... a6 {[%clk 0:01:48.5]} 12. g3 {[%clk 0:01:32.4]} 12...
g4 {[%clk 0:01:13.8]} 13. Nh4 {[%clk 0:01:03.1]} 13... Qa5 {[%clk 0:00:34.6]}
14. Kb1 {[%clk 0:00:28]} 14... O-O {[%clk 0:00:33.1]} 15. Be2 {[%clk 0:00:26.1]}
15... h5 {[%clk 0:00:17.3]} 16. h3 {[%clk 0:00:25.4]} 16... b5 {[%clk
0:00:17.9]} 17. hxg4 {[%clk 0:00:24.6]} 17... b4 {[%clk 0:00:18.5]} 18. Nd5
{[%clk 0:00:21.7]} 18... exd5 {[%clk 0:00:19.4]} 19. exd5 {[%clk 0:00:20.5]}
19... Nd4 {[%clk 0:00:19.9]} 20. g5 {[%clk 0:00:17.8]} 20... Bg7 {[%clk
0:00:18.7]} 21. Bd3 {[%clk 0:00:15.2]} 21... Nb5 {[%clk 0:00:16.6]} 22. f5
{[%clk 0:00:07.9]} 22... Nc3+ {[%clk 0:00:16]} 23. bxc3 {[%clk 0:00:06.7]} 23...
bxc3 {[%clk 0:00:16.9]} 24. Qc1 {[%clk 0:00:03.6]} 24... Rb8+ {[%clk 0:00:17.5]}
25. Ka1 {[%clk 0:00:04.2]} 25... Rb2 {[%clk 0:00:18.4]} 26. Bc4 {[%clk 0:00:04]}
26... Be5 {[%clk 0:00:13.6]} 27. Nf3 {[%clk 0:00:03.7]} 27... Bxf5 {[%clk
0:00:11.5]} 28. Nxe5 {[%clk 0:00:02.2]} 28... dxe5 {[%clk 0:00:12.4]} 29. Rh2
{[%clk 0:00:02.3]} 29... Rfb8 {[%clk 0:00:10.1]} 30. d6 {[%clk 0:00:01.5]} 30...
Be6 {[%clk 0:00:05.3]} 0-1

[Event "*** Titled Tuesday Blitz"]
[Site "Chess.com"]
[Date "2021.04.06"]
[Round "3"]
[White "if_name_main_a"]
[Black "Koalaskakistis"]
[Result "0-1"]
[WhiteElo "2345"]
[BlackElo "2587"]
[TimeControl "180+1"]
[EndTime "10:28:39 PDT"]
[Termination "Koalaskakistis won by checkmate"]

1. c4 {[%clk 0:03:00.9]} 1... e5 {[%clk 0:02:01]} 2. Nc3 {[%clk 0:03:01.8]} 2...
c6 {[%clk 0:01:58.8]} 3. Nf3 {[%clk 0:03:01.9]} 3... d6 {[%clk 0:01:55.7]} 4. d4
{[%clk 0:03:01.5]} 4... exd4 {[%clk 0:01:54.7]} 5. Nxd4 {[%clk 0:03:02.4]} 5...
Nf6 {[%clk 0:01:55]} 6. e4 {[%clk 0:03:02.7]} 6... Be7 {[%clk 0:01:55.6]} 7. Be2
{[%clk 0:03:03.1]} 7... O-O {[%clk 0:01:56.3]} 8. Be3 {[%clk 0:03:03.2]} 8... a5
{[%clk 0:01:57]} 9. O-O {[%clk 0:03:02.7]} 9... Na6 {[%clk 0:01:57.7]} 10. b3
{[%clk 0:02:53]} 10... Nc5 {[%clk 0:01:56.9]} 11. f3 {[%clk 0:02:52.8]} 11...
Qc7 {[%clk 0:01:55.4]} 12. a3 {[%clk 0:02:51.6]} 12... Ne6 {[%clk 0:01:52.3]}
13. Qd2 {[%clk 0:02:45.3]} 13... Nxd4 {[%clk 0:01:48.1]} 14. Bxd4 {[%clk
0:02:45.3]} 14... Nd7 {[%clk 0:01:48.6]} 15. b4 {[%clk 0:02:40.1]} 15... Ne5
{[%clk 0:01:44.8]} 16. h3 {[%clk 0:02:32.3]} 16... f5 {[%clk 0:01:43.2]} 17. f4
{[%clk 0:02:31.3]} 17... Ng6 {[%clk 0:01:43.2]} 18. Rae1 {[%clk 0:01:14.6]}
18... axb4 {[%clk 0:01:40.2]} 19. axb4 {[%clk 0:01:14.6]} 19... Ra3 {[%clk
0:01:35.9]} 20. Qb2 {[%clk 0:01:09.5]} 20... Ra8 {[%clk 0:01:33.1]} 21. Nd1
{[%clk 0:01:00.4]} 21... fxe4 {[%clk 0:01:30.3]} 22. Bxg7 {[%clk 0:00:59.6]}
22... Rf7 {[%clk 0:01:30.6]} 23. Bh6 {[%clk 0:00:57.6]} 23... d5 {[%clk
0:01:29.2]} 24. Ne3 {[%clk 0:00:50.7]} 24... Bf6 {[%clk 0:01:12]} 25. Qb1 {[%clk
0:00:47.3]} 25... d4 {[%clk 0:01:08.8]} 26. Qxe4 {[%clk 0:00:36.2]} 26... dxe3
{[%clk 0:01:05.5]} 27. Qe8+ {[%clk 0:00:36.5]} 27... Nf8 {[%clk 0:01:04.9]} 28.
Bh5 {[%clk 0:00:37]} 28... Bd4 {[%clk 0:00:47.9]} 29. Rf3 {[%clk 0:00:27.2]}
29... Bg4 {[%clk 0:00:08.8]} 30. Bxf7+ {[%clk 0:00:23.6]} 30... Qxf7 {[%clk
0:00:09.7]} 31. Qxf7+ {[%clk 0:00:24]} 31... Kxf7 {[%clk 0:00:10.4]} 32. hxg4
{[%clk 0:00:23.9]} 32... Ra2 {[%clk 0:00:08.2]} 33. f5 {[%clk 0:00:21.3]} 33...
e2+ {[%clk 0:00:08.3]} 34. Be3 {[%clk 0:00:21.6]} 34... Bc3 {[%clk 0:00:07.8]}
35. Bc5 {[%clk 0:00:21.9]} 35... Bxe1 {[%clk 0:00:07.5]} 36. Re3 {[%clk
0:00:19.8]} 36... Bc3 {[%clk 0:00:04.4]} 37. Re7+ {[%clk 0:00:17.9]} 37... Kf6
{[%clk 0:00:05]} 38. Re6+ {[%clk 0:00:18.5]} 38... Nxe6 {[%clk 0:00:05]} 39.
fxe6 {[%clk 0:00:19.4]} 39... e1=Q+ {[%clk 0:00:04.6]} 40. Kh2 {[%clk
0:00:20.3]} 40... Qh4+ {[%clk 0:00:05.2]} 41. Kg1 {[%clk 0:00:20.8]} 41... Ra1#
{[%clk 0:00:05.4]} 0-1

[Event "*** Titled Tuesday Blitz"]
[Site "Chess.com"]
[Date "2021.04.06"]
[Round "3"]
[White "Chamal_Gedgafov"]
[Black "SergeyShtyka"]
[Result "1/2-1/2"]
[WhiteElo "2203"]
[BlackElo "2392"]
[TimeControl "180+1"]
[EndTime "10:28:40 PDT"]
[Termination "Game drawn by repetition"]

1. d4 {[%clk 0:03:00.9]} 1... c5 {[%clk 0:02:58.7]} 2. d5 {[%clk 0:03:00.3]}
2... e5 {[%clk 0:02:58.8]} 3. c4 {[%clk 0:03:01.2]} 3... d6 {[%clk 0:02:57.5]}
4. Nc3 {[%clk 0:03:02.1]} 4... Be7 {[%clk 0:02:49.6]} 5. e4 {[%clk 0:03:03]}
5... Bg5 {[%clk 0:02:48.5]} 6. Be2 {[%clk 0:03:01.3]} 6... Bxc1 {[%clk
0:02:43.8]} 7. Rxc1 {[%clk 0:03:02.2]} 7... Nf6 {[%clk 0:02:43.4]} 8. Nf3 {[%clk
0:03:00.5]} 8... Bg4 {[%clk 0:02:41.4]} 9. Nd2 {[%clk 0:02:59.6]} 9... Bxe2
{[%clk 0:02:40]} 10. Qxe2 {[%clk 0:03:00.5]} 10... O-O {[%clk 0:02:39]} 11. O-O
{[%clk 0:03:00.9]} 11... Nbd7 {[%clk 0:02:38.7]} 12. g3 {[%clk 0:03:00.5]} 12...
a6 {[%clk 0:02:36.2]} 13. a3 {[%clk 0:02:57.9]} 13... Rb8 {[%clk 0:02:34.1]} 14.
f4 {[%clk 0:02:51]} 14... exf4 {[%clk 0:02:32.3]} 15. gxf4 {[%clk 0:02:50.6]}
15... Re8 {[%clk 0:02:30.1]} 16. Qd3 {[%clk 0:02:49.9]} 16... b5 {[%clk
0:02:14.5]} 17. cxb5 {[%clk 0:02:49]} 17... axb5 {[%clk 0:02:14]} 18. Nxb5
{[%clk 0:02:43.8]} 18... Qb6 {[%clk 0:02:13.4]} 19. Nc4 {[%clk 0:02:22]} 19...
Qxb5 {[%clk 0:02:11.5]} 20. Rfe1 {[%clk 0:02:20]} 20... Nb6 {[%clk 0:01:59.4]}
21. b3 {[%clk 0:02:11.7]} 21... Nxc4 {[%clk 0:01:56]} 22. bxc4 {[%clk
0:02:12.6]} 22... Qb3 {[%clk 0:01:53.2]} 23. Qxb3 {[%clk 0:02:12]} 23... Rxb3
{[%clk 0:01:51.8]} 24. e5 {[%clk 0:02:12.9]} 24... Nd7 {[%clk 0:01:43.8]} 25.
exd6 {[%clk 0:02:11.4]} 25... Kf8 {[%clk 0:01:41.6]} 26. Rxe8+ {[%clk
0:02:06.4]} 26... Kxe8 {[%clk 0:01:41]} 27. Re1+ {[%clk 0:02:07.3]} 27... Kd8
{[%clk 0:01:30.3]} 28. Re7 {[%clk 0:02:08.2]} 28... Rxa3 {[%clk 0:01:24.5]} 29.
Rxf7 {[%clk 0:02:08.1]} 29... Ra6 {[%clk 0:01:24.5]} 30. Rxg7 {[%clk 0:02:07.6]}
30... Rxd6 {[%clk 0:01:24.7]} 31. Rxh7 {[%clk 0:02:07.3]} 31... Rf6 {[%clk
0:01:24.3]} 32. Rh4 {[%clk 0:02:04.1]} 32... Nb6 {[%clk 0:01:23.7]} 33. Kf2
{[%clk 0:01:59.7]} 33... Nxc4 {[%clk 0:01:23.8]} 34. Kf3 {[%clk 0:01:58.8]}
34... Nd6 {[%clk 0:01:23.6]} 35. Rh7 {[%clk 0:01:54]} 35... Rf7 {[%clk
0:01:17.9]} 36. Rh6 {[%clk 0:01:51.8]} 36... Kd7 {[%clk 0:01:17.5]} 37. h4
{[%clk 0:01:48.5]} 37... Rf5 {[%clk 0:01:16.6]} 38. Rh7+ {[%clk 0:01:46.2]}
38... Kd8 {[%clk 0:01:16.8]} 39. h5 {[%clk 0:01:44.7]} 39... Rxd5 {[%clk
0:01:09.7]} 40. Kg4 {[%clk 0:01:43]} 40... c4 {[%clk 0:01:04.5]} 41. h6 {[%clk
0:01:42.5]} 41... c3 {[%clk 0:01:00.5]} 42. Ra7 {[%clk 0:01:35.9]} 42... Rd1
{[%clk 0:00:55.5]} 43. h7 {[%clk 0:01:23.6]} 43... Rh1 {[%clk 0:00:55.1]} 44.
Ra8+ {[%clk 0:01:18.3]} 44... Nc8 {[%clk 0:00:49.7]} 45. Ra3 {[%clk 0:01:17.9]}
45... c2 {[%clk 0:00:47.1]} 46. Rc3 {[%clk 0:01:15.1]} 46... Rxh7 {[%clk
0:00:45.5]} 47. Rxc2 {[%clk 0:01:15]} 47... Nd6 {[%clk 0:00:45.6]} 48. Rc6
{[%clk 0:01:12.6]} 48... Kd7 {[%clk 0:00:44.7]} 49. Ra6 {[%clk 0:01:11.7]} 49...
Rg7+ {[%clk 0:00:44.2]} 50. Kf3 {[%clk 0:01:11.1]} 50... Ke6 {[%clk 0:00:44.2]}
51. Rb6 {[%clk 0:01:08]} 51... Rf7 {[%clk 0:00:43.4]} 52. Ra6 {[%clk 0:01:06.7]}
52... Rb7 {[%clk 0:00:43.3]} 53. Rc6 {[%clk 0:01:02.8]} 53... Rb1 {[%clk
0:00:43.2]} 54. Ra6 {[%clk 0:01:01.8]} 54... Rc1 {[%clk 0:00:42.6]} 55. Rb6
{[%clk 0:01:00.6]} 55... Rd1 {[%clk 0:00:42.5]} 56. Ra6 {[%clk 0:00:59.9]} 56...
Kf5 {[%clk 0:00:42.1]} 57. Ra5+ {[%clk 0:00:58]} 57... Kf6 {[%clk 0:00:41.1]}
58. Ra6 {[%clk 0:00:57.6]} 58... Kf5 {[%clk 0:00:40.7]} 59. Ra5+ {[%clk
0:00:57.1]} 59... Kf6 {[%clk 0:00:40.4]} 60. Ra6 {[%clk 0:00:56.9]} 60... Kf5
{[%clk 0:00:40.1]} 1/2-1/2

[Event "*** Titled Tuesday Blitz"]
[Site "Chess.com"]
[Date "2021.04.06"]
[Round "3"]
[White "The_Machine04"]
[Black "Kildepiotr"]
[Result "0-1"]
[WhiteElo "2447"]
[BlackElo "2655"]
[TimeControl "180+1"]
[EndTime "10:28:41 PDT"]
[Termination "Kildepiotr won by checkmate"]

1. d4 {[%clk 0:03:00.9]} 1... c5 {[%clk 0:02:59.4]} 2. d5 {[%clk 0:03:01.1]}
2... e5 {[%clk 0:02:59.2]} 3. Nc3 {[%clk 0:03:01.3]} 3... d6 {[%clk 0:02:59.5]}
4. e4 {[%clk 0:03:01.8]} 4... Be7 {[%clk 0:03:00.1]} 5. Be2 {[%clk 0:02:56.7]}
5... Bg5 {[%clk 0:02:59.4]} 6. Nf3 {[%clk 0:02:57.6]} 6... Bxc1 {[%clk
0:02:58.9]} 7. Qxc1 {[%clk 0:02:58.5]} 7... Ne7 {[%clk 0:02:59.4]} 8. O-O {[%clk
0:02:58.6]} 8... O-O {[%clk 0:02:59.9]} 9. Nd2 {[%clk 0:02:59]} 9... Nd7 {[%clk
0:02:58.6]} 10. Nc4 {[%clk 0:02:59.2]} 10... Nf6 {[%clk 0:02:58.7]} 11. a4
{[%clk 0:02:58.2]} 11... Ng6 {[%clk 0:02:53.7]} 12. g3 {[%clk 0:02:56.6]} 12...
Bh3 {[%clk 0:02:53.3]} 13. Re1 {[%clk 0:02:55.6]} 13... a6 {[%clk 0:02:50.7]}
14. a5 {[%clk 0:02:55.4]} 14... Qe7 {[%clk 0:02:48.4]} 15. f3 {[%clk 0:02:51.9]}
15... Rad8 {[%clk 0:02:45.3]} 16. Qe3 {[%clk 0:02:51.1]} 16... Nd7 {[%clk
0:02:41.6]} 17. Bf1 {[%clk 0:02:47.8]} 17... Bxf1 {[%clk 0:02:40.6]} 18. Rxf1
{[%clk 0:02:48.7]} 18... f5 {[%clk 0:02:40.8]} 19. Rab1 {[%clk 0:02:47.8]} 19...
f4 {[%clk 0:02:38.8]} 20. Qe2 {[%clk 0:02:44.7]} 20... h5 {[%clk 0:02:37.1]} 21.
b4 {[%clk 0:02:39]} 21... cxb4 {[%clk 0:02:38]} 22. Rxb4 {[%clk 0:02:39.7]}
22... Nc5 {[%clk 0:02:38.1]} 23. Na4 {[%clk 0:02:35.7]} 23... Nxa4 {[%clk
0:02:37.3]} 24. Rxa4 {[%clk 0:02:36.6]} 24... fxg3 {[%clk 0:02:35.8]} 25. hxg3
{[%clk 0:02:35.8]} 25... h4 {[%clk 0:02:36.7]} 26. g4 {[%clk 0:02:21.5]} 26...
Nf4 {[%clk 0:02:32.4]} 27. Qh2 {[%clk 0:02:20.9]} 27... Rc8 {[%clk 0:02:29.8]}
28. Ne3 {[%clk 0:02:17.8]} 28... g6 {[%clk 0:02:26.3]} 29. c4 {[%clk 0:02:17.4]}
29... Rc5 {[%clk 0:02:09.3]} 30. Rb1 {[%clk 0:02:12.7]} 30... Rf7 {[%clk
0:02:03.3]} 31. Qd2 {[%clk 0:01:41.9]} 31... h3 {[%clk 0:01:55.5]} 32. Kh2
{[%clk 0:01:35.1]} 32... Qh4 {[%clk 0:01:47.4]} 33. Rab4 {[%clk 0:01:27.1]}
33... Rxa5 {[%clk 0:01:37.9]} 34. Rb6 {[%clk 0:00:57.3]} 34... Ra3 {[%clk
0:01:27.4]} 35. Rxd6 {[%clk 0:00:52.4]} 35... Rd3 {[%clk 0:01:26.9]} 36. Rxg6+
{[%clk 0:00:30.7]} 36... Nxg6 {[%clk 0:01:23.5]} 37. Qxd3 {[%clk 0:00:27]} 37...
Qf2+ {[%clk 0:01:18.3]} 38. Kh1 {[%clk 0:00:26.8]} 38... Qxf3+ {[%clk
0:01:16.5]} 39. Kh2 {[%clk 0:00:23.9]} 39... Qf2+ {[%clk 0:01:07.7]} 40. Kh1
{[%clk 0:00:23.5]} 40... Rf3 {[%clk 0:01:01.6]} 41. Rf1 {[%clk 0:00:02.3]} 41...
Rxe3 {[%clk 0:01:00.8]} 42. Rxf2 {[%clk 0:00:02.7]} 42... Rxd3 {[%clk
0:01:00.9]} 43. Rf6 {[%clk 0:00:03.4]} 43... Nf4 {[%clk 0:00:52.6]} 44. Rb6
{[%clk 0:00:01.5]} 44... Rd1+ {[%clk 0:00:51.2]} 45. Kh2 {[%clk 0:00:01.6]}
45... Rd2+ {[%clk 0:00:52.1]} 46. Kg3 {[%clk 0:00:02.5]} 46... h2 {[%clk
0:00:48.4]} 47. Kf3 {[%clk 0:00:02.9]} 47... h1=Q+ {[%clk 0:00:47.4]} 48. Ke3
{[%clk 0:00:03.8]} 48... Re2# {[%clk 0:00:44.6]} 0-1

[Event "*** Titled Tuesday Blitz"]
[Site "Chess.com"]
[Date "2021.04.06"]
[Round "3"]
[White "ShahMatKanal"]
[Black "Margency"]
[Result "0-1"]
[WhiteElo "2444"]
[BlackElo "2716"]
[TimeControl "180+1"]
[EndTime "10:28:41 PDT"]
[Termination "Margency won by resignation"]

1. Nf3 {[%clk 0:03:00.9]} 1... Nf6 {[%clk 0:02:57.8]} 2. c4 {[%clk 0:03:00.9]}
2... g6 {[%clk 0:02:58.2]} 3. Nc3 {[%clk 0:03:00.3]} 3... Bg7 {[%clk 0:02:57.9]}
4. e4 {[%clk 0:03:00.3]} 4... d6 {[%clk 0:02:58.6]} 5. d4 {[%clk 0:03:00.2]}
5... O-O {[%clk 0:02:59.3]} 6. Be2 {[%clk 0:03:00.4]} 6... e5 {[%clk 0:03:00]}
7. d5 {[%clk 0:03:00.5]} 7... a5 {[%clk 0:02:59.6]} 8. O-O {[%clk 0:03:00.4]}
8... Na6 {[%clk 0:02:59.6]} 9. Qc2 {[%clk 0:02:46]} 9... Bd7 {[%clk 0:02:57.7]}
10. Ne1 {[%clk 0:02:32.2]} 10... Ne8 {[%clk 0:02:45.7]} 11. Be3 {[%clk
0:02:15.6]} 11... f5 {[%clk 0:02:44.9]} 12. f3 {[%clk 0:02:15.6]} 12... Nf6
{[%clk 0:02:42.8]} 13. Nd3 {[%clk 0:02:09.8]} 13... b6 {[%clk 0:02:36.2]} 14. b3
{[%clk 0:01:58.1]} 14... Qe7 {[%clk 0:02:27.4]} 15. a3 {[%clk 0:01:53.3]} 15...
fxe4 {[%clk 0:02:18.8]} 16. Nxe4 {[%clk 0:01:40.7]} 16... Nxe4 {[%clk 0:02:15]}
17. fxe4 {[%clk 0:01:40.4]} 17... Nc5 {[%clk 0:02:15.1]} 18. Bf3 {[%clk
0:01:19.3]} 18... a4 {[%clk 0:01:57.3]} 19. Nxc5 {[%clk 0:01:18.8]} 19... dxc5
{[%clk 0:01:52.3]} 20. b4 {[%clk 0:01:05.7]} 20... cxb4 {[%clk 0:01:49.2]} 21.
axb4 {[%clk 0:01:01.3]} 21... Qxb4 {[%clk 0:01:40.1]} 22. c5 {[%clk 0:01:00]}
22... Qa5 {[%clk 0:01:08.5]} 23. c6 {[%clk 0:00:49.6]} 23... Bc8 {[%clk
0:01:07.3]} 24. Be2 {[%clk 0:00:44.7]} 24... a3 {[%clk 0:00:54]} 25. d6 {[%clk
0:00:32]} 25... cxd6 {[%clk 0:00:48.8]} 26. Bc4+ {[%clk 0:00:32.3]} 26... Kh8
{[%clk 0:00:48.1]} 27. Rxf8+ {[%clk 0:00:33]} 27... Bxf8 {[%clk 0:00:48.3]} 28.
Qf2 {[%clk 0:00:21]} 28... Ba6 {[%clk 0:00:34]} 29. Bxb6 {[%clk 0:00:12.6]}
29... Qc3 {[%clk 0:00:28.4]} 30. Bxa6 {[%clk 0:00:04.4]} 30... Qxa1+ {[%clk
0:00:28.2]} 31. Bf1 {[%clk 0:00:04.5]} 31... a2 {[%clk 0:00:24.5]} 32. c7 {[%clk
0:00:04.8]} 32... Qc1 {[%clk 0:00:24.5]} 33. h4 {[%clk 0:00:04.1]} 33... a1=Q
{[%clk 0:00:24.2]} 34. h5 {[%clk 0:00:03.9]} 34... Rc8 {[%clk 0:00:21.2]} 35.
hxg6 {[%clk 0:00:04]} 35... hxg6 {[%clk 0:00:20.3]} 36. Qh4+ {[%clk 0:00:04.2]}
36... Qh6 {[%clk 0:00:20.1]} 37. Qxh6+ {[%clk 0:00:03.7]} 37... Bxh6 {[%clk
0:00:20]} 0-1

[Event "*** Titled Tuesday Blitz"]
[Site "Chess.com"]
[Date "2021.04.06"]
[Round "3"]
[White "ybruned"]
[Black "Gusarov91"]
[Result "0-1"]
[WhiteElo "2335"]
[BlackElo "2628"]
[TimeControl "180+1"]
[EndTime "10:28:42 PDT"]
[Termination "Gusarov91 won by resignation"]

1. b3 {[%clk 0:03:00.9]} 1... d5 {[%clk 0:02:53.3]} 2. Bb2 {[%clk 0:03:00]} 2...
Bg4 {[%clk 0:02:51.9]} 3. f3 {[%clk 0:02:59.5]} 3... Bh5 {[%clk 0:02:50.9]} 4.
e4 {[%clk 0:03:00.1]} 4... dxe4 {[%clk 0:02:49.4]} 5. Qe2 {[%clk 0:03:00.4]}
5... c6 {[%clk 0:02:40]} 6. Nc3 {[%clk 0:02:49.6]} 6... exf3 {[%clk 0:02:36.1]}
7. Nxf3 {[%clk 0:02:48.4]} 7... Nf6 {[%clk 0:02:35]} 8. O-O-O {[%clk 0:02:47.4]}
8... Nbd7 {[%clk 0:02:32.8]} 9. h3 {[%clk 0:02:47.9]} 9... Bxf3 {[%clk
0:02:31.6]} 10. Qxf3 {[%clk 0:02:44.6]} 10... e6 {[%clk 0:02:31.4]} 11. g4
{[%clk 0:02:44.9]} 11... Qa5 {[%clk 0:02:30.1]} 12. h4 {[%clk 0:02:34.6]} 12...
Ba3 {[%clk 0:02:29.2]} 13. g5 {[%clk 0:02:03]} 13... Bxb2+ {[%clk 0:02:22.2]}
14. Kxb2 {[%clk 0:02:01.7]} 14... Nd5 {[%clk 0:02:22.4]} 15. Ne4 {[%clk
0:01:35]} 15... Qc7 {[%clk 0:02:15.8]} 16. Bh3 {[%clk 0:01:23.4]} 16... Ne5
{[%clk 0:01:56.6]} 17. Qf2 {[%clk 0:01:04.8]} 17... a5 {[%clk 0:01:46.1]} 18. d4
{[%clk 0:00:55.4]} 18... Ng6 {[%clk 0:01:39]} 19. c4 {[%clk 0:00:33]} 19... Ndf4
{[%clk 0:01:28.5]} 20. h5 {[%clk 0:00:33.5]} 20... Nxh5 {[%clk 0:01:18]} 21.
Bxe6 {[%clk 0:00:29.4]} 21... fxe6 {[%clk 0:01:16.8]} 22. Rxh5 {[%clk
0:00:28.7]} 22... O-O-O {[%clk 0:01:16.2]} 23. c5 {[%clk 0:00:27.3]} 23... Rdf8
{[%clk 0:01:12.8]} 24. Qd2 {[%clk 0:00:26.7]} 24... Nf4 {[%clk 0:01:07.9]} 25.
Nd6+ {[%clk 0:00:26.9]} 25... Kb8 {[%clk 0:01:06.6]} 26. Rhh1 {[%clk 0:00:21.6]}
26... Nd5 {[%clk 0:01:03.8]} 27. Rdf1 {[%clk 0:00:21.6]} 27... g6 {[%clk
0:01:00.5]} 28. Qe2 {[%clk 0:00:19.5]} 28... Qg7 {[%clk 0:00:58.1]} 29. Qe4
{[%clk 0:00:18.9]} 29... Kc7 {[%clk 0:00:38.5]} 30. Nc4 {[%clk 0:00:18.2]} 30...
Rf5 {[%clk 0:00:33.4]} 31. Nxa5 {[%clk 0:00:16.1]} 31... Rhf8 {[%clk 0:00:32.1]}
32. Rxf5 {[%clk 0:00:14.3]} 32... exf5 {[%clk 0:00:32.6]} 33. Qe5+ {[%clk
0:00:14]} 33... Qxe5 {[%clk 0:00:32.7]} 34. dxe5 {[%clk 0:00:14.9]} 34... Rf7
{[%clk 0:00:32.3]} 35. Nc4 {[%clk 0:00:14.5]} 35... f4 {[%clk 0:00:32.1]} 36.
Nd6 {[%clk 0:00:14.2]} 36... Re7 {[%clk 0:00:31.9]} 37. Nc4 {[%clk 0:00:12]}
37... b5 {[%clk 0:00:28.7]} 38. cxb6+ {[%clk 0:00:11.7]} 38... Nxb6 {[%clk
0:00:29.2]} 39. Nxb6 {[%clk 0:00:12]} 39... Kxb6 {[%clk 0:00:29.8]} 40. Rf1
{[%clk 0:00:12.2]} 40... Rxe5 {[%clk 0:00:30.2]} 41. Rxf4 {[%clk 0:00:12.7]}
41... Rxg5 {[%clk 0:00:30.9]} 42. Rf7 {[%clk 0:00:13.2]} 42... h5 {[%clk
0:00:31.4]} 43. a4 {[%clk 0:00:13.6]} 43... h4 {[%clk 0:00:31.9]} 44. Rh7 {[%clk
0:00:13.7]} 44... Rh5 {[%clk 0:00:32.5]} 45. b4 {[%clk 0:00:13.4]} 45... Rxh7
{[%clk 0:00:32.1]} 0-1